bitfinex/quotes_SOLUSD_20250422
["timestamp","ask_amount","ask_price","bid_price","bid_amount"]
[1745309281902,0.03,140.29,140.28,51.08815091]
[1745309282202,0.03,140.29,140.28,61.41964886]
[1745309282407,0.03,140.29,140.28,69.73779977]
[1745309282985,0.03,140.29,140.28,76.86639971]
[1745309283588,0.03,140.29,140.28,69.73779977]
[1745309284512,0.03,140.29,140.28,76.86639971]
[1745309284908,0.03,140.29,140.28,185.39639971]
[1745309285883,0.03,140.29,140.28,142.62639971]
[1745309286810,0.03,140.29,140.28,8.31815091]
[1745309287317,0.03,140.29,140.28,26.96779977]
[1745309287483,0.03,140.29,140.28,8.31815091]
[1745309288505,0.03,140.29,140.28,15.44675085]
[1745309288713,0.03,140.29,140.28,116.62639971]
[1745309292821,0.03,140.29,140.28,142.62639971]
[1745309293120,0.03,140.29,140.28,134.3082488]
[1745309293311,0.03,140.29,140.28,142.62639971]
[1745309296119,0.03,140.29,140.28,116.62639971]
[1745309296322,0.03,140.29,140.28,90.84815091]
[1745309296497,0.03,140.29,140.28,82.53]
[1745309296697,0.03,140.29,140.28,90.84815091]
[1745309297822,0.03,140.29,140.22,131.577]
[1745309298125,0.03,140.29,140.25,8.31815091]
[1745309298826,0.03,140.29,140.25,15.4482227]
[1745309299510,0.03,140.29,140.26,8.31815091]
[1745309299824,0.03,140.29,140.27,8.31815091]
[1745309300124,0.03,140.29,140.28,8.31815091]
[1745309300716,0.03,140.29,140.27,26.96779977]
[1745309301417,0.03,140.29,140.27,8.31815091]
[1745309301726,0.03,140.29,140.26,41.44769224]
[1745309301928,0.03,140.29,140.26,34.31815091]
[1745309302110,0.03,140.29,140.26,8.31815091]
[1745309304318,0.03,140.29,140.27,8.31815091]
[1745309304834,0.03,140.29,140.26,8.31815091]
[1745309306133,0.03,140.29,140.27,8.31815091]
[1745309307740,0.03,140.29,140.27,15.44692765]
[1745309307926,0.03,140.29,140.28,8.31815091]
[1745309308925,0.03,140.29,140.28,15.44675085]
[1745309309336,0.03,140.29,140.28,34.09639971]
[1745309309539,0.03,140.29,140.28,116.62639971]
[1745309311230,0.03,140.29,140.28,159.39639971]
[1745309313638,0.03,140.29,140.28,152.26779977]
[1745309314016,0.03,140.29,140.28,159.39639971]
[1745309317644,0.03,140.29,140.28,42.77]
[1745309317946,0.03,140.29,140.28,51.08815091]
[1745309319646,0.03,140.29,140.28,58.21675085]
[1745309320143,0.03,140.29,140.28,51.08815091]
[1745309322149,0.03,140.29,140.28,42.77]
[1745309322640,0.03,140.29,140.28,51.08815091]
[1745309324161,0.03,140.29,140.28,58.21675085]
[1745309325433,0.03,140.29,140.28,51.08815091]
[1745309326855,0.03,140.29,140.28,76.86639971]
[1745309327541,0.03,140.29,140.28,69.73779977]
[1745309328138,0.03,140.29,140.28,76.86639971]
[1745309328735,0.03,140.29,140.28,61.41964886]
[1745309328940,0.03,140.29,140.28,69.73779977]
[1745309329359,0.03,140.29,140.28,76.86639971]
[1745309332775,0.03,140.29,140.28,42.77]
[1745309333836,0.03,140.29,140.27,42.77]
[1745309334040,8.31815091,140.28,140.21,7.1321589]
[1745309334245,8.31815091,140.27,140.22,8.31815091]
[1745309334961,15.44766253,140.27,140.22,42.77]
[1745309335257,15.44766253,140.27,140.22,8.31815091]
[1745309335667,8.31815091,140.24,140.21,42.77]
[1745309335844,8.31815091,140.22,140.2,0.063]
[1745309336046,8.31815091,140.21,140.2,0.063]
[1745309336877,17.02200981,140.21,140.2,0.063]
[1745309337078,8.7038589,140.21,140.2,0.063]
[1745309337238,17.02200981,140.21,140.2,0.063]
[1745309339870,1.5717,140.21,140.2,0.063]
[1745309340170,116.6641,140.25,140.2,0.063]
[1745309340345,8.31815091,140.24,140.2,0.063]
[1745309340542,8.31815091,140.23,140.2,0.063]
[1745309341064,15.44881873,140.24,140.2,0.063]
[1745309341465,8.31815091,140.22,140.2,0.063]
[1745309341673,8.31815091,140.23,140.2,0.063]
[1745309342061,7.13066782,140.24,140.2,0.063]
[1745309342250,15.44881873,140.24,140.2,0.063]
[1745309342449,8.31815091,140.23,140.2,0.063]
[1745309343177,7.13066782,140.24,140.2,0.063]
[1745309343178,15.44881873,140.24,140.2,0.063]
[1745309343774,8.31815091,140.22,140.2,0.063]
[1745309344154,8.31815091,140.21,140.2,0.063]
[1745309344374,8.31815091,140.22,140.2,0.063]
[1745309344777,8.31815091,140.23,140.2,0.063]
[1745309345357,15.44963365,140.23,140.2,0.063]
[1745309345973,7.13083634,140.24,140.2,0.063]
[1745309346283,15.44898725,140.24,140.2,0.063]
[1745309346491,8.31815091,140.23,140.2,0.063]
[1745309347064,15.44937575,140.23,140.2,0.063]
[1745309347659,8.31815091,140.23,140.2,0.063]
[1745309347859,8.31815091,140.24,140.2,0.063]
[1745309348060,8.31815091,140.24,140.2,8.38115091]
[1745309348475,8.31815091,140.24,140.2,0.063]
[1745309349086,15.44878915,140.24,140.2,0.063]
[1745309349995,17.78,140.26,140.21,8.31815091]
[1745309350179,8.31815091,140.26,140.21,8.31815091]
[1745309350680,7.12910814,140.27,140.22,8.31815091]
[1745309351087,15.44725905,140.27,140.22,8.31815091]
[1745309352096,8.31815091,140.26,140.2,25.84509458]
[1745309352396,8.31815091,140.26,140.21,8.31815091]
[1745309352583,15.44725905,140.27,140.23,8.31815091]
[1745309353182,15.44725905,140.27,140.22,7.13128264]
[1745309353491,8.31815091,140.26,140.22,8.31815091]
[1745309353892,15.44725905,140.27,140.22,8.31815091]
[1745309354402,15.44725905,140.27,140.21,8.31815091]
[1745309354403,8.31815091,140.26,140.21,8.31815091]
[1745309354702,8.31815091,140.24,140.2,0.063]
[1745309355202,15.44903932,140.24,140.2,0.063]
[1745309356096,15.44903932,140.24,140.2,42.833]
[1745309356477,8.31815091,140.23,140.2,0.063]
[1745309357404,8.31815091,140.22,140.2,0.063]
[1745309358501,8.31815091,140.21,140.2,0.063]
[1745309358810,15.45030981,140.21,140.2,0.063]
[1745309362276,8.31815091,140.18,140.17,0.063]
[1745309362694,15.45183617,140.18,140.17,0.063]
[1745309363376,7.13368526,140.18,140.17,0.063]
[1745309363691,15.45183617,140.18,140.17,0.063]
[1745309364999,24.96255616,140.21,140.17,0.063]
[1745309365201,8.31815091,140.18,140.17,0.063]
[1745309365810,24.96255616,140.21,140.17,0.063]
[1745309365976,8.31815091,140.18,140.17,0.063]
[1745309366177,24.96255616,140.21,140.17,0.063]
[1745309366391,8.31815091,140.18,140.17,0.063]
[1745309366801,15.45183617,140.18,140.17,0.063]
[1745309368304,7.13368526,140.18,140.17,0.063]
[1745309368805,15.4515444,140.19,140.17,0.063]
[1745309369105,35.46773043,140.24,140.18,8.31815091]
[1745309369402,35.46773043,140.24,140.17,0.063]
[1745309369403,7.13114169,140.23,140.19,8.31815091]
[1745309370404,15.4492926,140.23,140.19,8.31815091]
[1745309370700,15.4492926,140.23,140.18,8.31815091]
[1745309371093,15.4492926,140.23,140.17,18.71264886]
[1745309371294,8.31815091,140.22,140.17,8.38115091]
[1745309371921,15.4492926,140.23,140.19,8.31815091]
[1745309372221,15.44891641,140.24,140.19,8.31815091]
[1745309372383,8.31815091,140.23,140.18,8.31815091]
[1745309372588,8.31815091,140.2,140.17,0.063]
[1745309373205,8.31815091,140.21,140.17,0.063]
[1745309374403,8.31815091,140.2,140.17,0.063]
[1745309374903,24.9573485,140.24,140.17,0.063]
[1745309375108,8.31815091,140.21,140.17,0.063]
[1745309376011,8.31815091,140.18,140.17,0.063]
[1745309376387,15.45183617,140.18,140.17,0.063]
[1745309390593,7.13368526,140.18,140.17,0.063]
[1745309391216,15.45183617,140.18,140.17,0.063]
[1745309391832,7.13368526,140.18,140.17,0.063]
[1745309392693,24.961018,140.22,140.17,8.38115091]
[1745309392893,7.13165026,140.22,140.19,8.31815091]
[1745309393306,7.13165026,140.22,140.18,8.31815091]
[1745309393601,15.44980117,140.22,140.18,8.31815091]
[1745309393805,15.44980117,140.22,140.17,8.38115091]
[1745309394540,8.31815091,140.21,140.17,8.38115091]
[1745309395010,15.44980117,140.22,140.18,8.31815091]
[1745309395442,15.44980117,140.22,140.17,0.063]
[1745309395609,15.44980117,140.22,140.17,8.38115091]
[1745309396531,8.31815091,140.21,140.17,0.063]
[1745309396934,24.96077591,140.22,140.17,8.38115091]
[1745309397233,8.31815091,140.21,140.17,8.38115091]
[1745309398107,8.31815091,140.21,140.17,0.063]
[1745309398309,8.31815091,140.19,140.17,0.063]
[1745309398621,15.45168965,140.19,140.17,0.063]
[1745309399022,8.31815091,140.18,140.17,0.063]
[1745309399228,7.13353874,140.19,140.17,0.063]
[1745309400363,15.45097954,140.2,140.17,0.063]
[1745309401215,8.31815091,140.19,140.17,0.063]
[1745309401535,8.31815091,140.18,140.17,0.063]
[1745309402256,8.31815091,140.19,140.17,0.063]
[1745309402849,15.4515876,140.19,140.17,0.063]
[1745309403051,7.13343669,140.19,140.17,0.063]
[1745309403356,43.82800359,140.23,140.17,0.063]
[1745309403655,8.31815091,140.21,140.17,0.063]
[1745309404055,8.31815091,140.22,140.17,8.38115091]
[1745309404355,8.31815091,140.21,140.17,0.063]
[1745309404557,7.13266761,140.2,140.17,0.063]
[1745309405431,8.31815091,140.19,140.17,0.063]
[1745309405672,8.31815091,140.18,140.17,0.063]
[1745309406836,15.45183617,140.18,140.17,0.063]
[1745309408045,18.64964886,140.17,140.14,0.063]
[1745309408246,104.61310182,140.18,140.14,0.063]
[1745309408247,8.31815091,140.15,140.14,0.063]
[1745309409129,15.45336318,140.15,140.14,0.063]
[1745309411243,20.16765729,140.15,140.14,0.063]
[1745309415274,56.65533683,140.15,140.11,0.063]
[1745309415469,13.03244502,140.12,140.11,0.063]
[1745309416442,20.16918495,140.12,140.11,0.063]
[1745309418452,7.13673993,140.12,140.11,0.063]
[1745309418953,20.16918495,140.12,140.11,0.063]
[1745309431385,8.34221573,140.12,140.11,0.063]
[1745309432986,26.99186459,140.12,140.11,0.063]
[1745309433484,15.47895566,140.12,140.11,0.063]
[1745309434788,7.13673993,140.12,140.11,0.063]
[1745309434990,15.47895566,140.12,140.11,0.063]
[1745309435298,83.0,140.18,140.11,0.063]
[1745309435467,7.13419419,140.17,140.11,0.063]
[1745309435781,8.34221573,140.16,140.11,8.40521573]
[1745309435979,15.47640992,140.17,140.12,8.34221573]
[1745309436160,7.13419419,140.17,140.12,8.34221573]
[1745309436366,15.47539213,140.19,140.14,8.34221573]
[1745309436777,8.34221573,140.18,140.14,8.34221573]
[1745309437490,20.15401371,140.19,140.14,20.15649088]
[1745309437888,20.15401371,140.19,140.14,7.13565357]
[1745309438071,20.15401371,140.19,140.14,20.15649088]
[1745309438501,0.03,140.2,140.15,13.02083731]
[1745309438502,13.05083731,140.2,140.15,13.02083731]
[1745309438701,0.03,140.2,140.16,13.02083731]
[1745309439381,0.03,140.2,140.14,7.13565357]
[1745309439687,0.03,140.2,140.16,13.02083731]
[1745309440391,0.03,140.2,140.16,20.15543533]
[1745309441187,13.05083731,140.2,140.16,7.13459802]
[1745309441566,20.18352588,140.2,140.15,20.15591207]
[1745309442065,0.03,140.2,140.16,13.02083731]
[1745309443291,13.02083731,140.19,140.14,33.13556234]
[1745309443485,13.02083731,140.18,140.14,26.0]
[1745309443793,20.15433997,140.19,140.14,39.02083731]
[1745309444796,20.15433997,140.19,140.14,46.15647586]
[1745309445295,20.15433997,140.19,140.14,39.02083731]
[1745309445890,20.15433997,140.19,140.14,46.15638286]
[1745309446392,7.13350266,140.19,140.15,13.02083731]
[1745309446602,13.02083731,140.19,140.15,13.02083731]
[1745309447398,20.18370573,140.2,140.15,20.155884]
[1745309447788,13.02083731,140.19,140.15,20.155884]
[1745309448098,13.02083731,140.19,140.15,7.13504669]
[1745309448396,13.02083731,140.18,140.14,68.77]
[1745309449399,13.02083731,140.19,140.14,88.92644818]
[1745309449597,13.02083731,140.18,140.14,88.92644818]
[1745309449787,13.02083731,140.19,140.14,88.92644818]
[1745309449982,13.05083731,140.2,140.15,55.79083731]
[1745309450191,0.03,140.2,140.16,13.02083731]
[1745309450998,13.05083731,140.2,140.16,7.13466188]
[1745309452197,13.05083731,140.2,140.16,20.15549919]
[1745309452501,13.02083731,140.19,140.15,62.9258181]
[1745309453599,0.03,140.2,140.15,62.9258181]
[1745309453786,13.05083731,140.2,140.15,62.9258181]
[1745309455118,13.02083731,140.18,140.14,26.0]
[1745309455905,13.02083731,140.18,140.13,49.90606441]
[1745309456093,13.02083731,140.18,140.13,62.92690172]
[1745309456708,13.02083731,140.16,140.12,89.66648777]
[1745309456888,13.02083731,140.16,140.12,102.68732508]
[1745309457213,17.86166904,140.2,140.12,89.66648777]
[1745309457391,8.33552444,140.16,140.12,89.66648777]
[1745309457706,8.33552444,140.16,140.12,82.53]
[1745309458281,8.33552444,140.14,140.11,0.063]
[1745309459405,15.47130051,140.14,140.11,0.063]
[1745309459909,7.13577607,140.14,140.11,0.063]
[1745309460211,7.13419419,140.17,140.13,8.33552444]
[1745309461290,8.33552444,140.17,140.13,8.33552444]
[1745309461816,7.1331764,140.19,140.11,0.063]
[1745309461817,8.33552444,140.16,140.11,0.063]
[1745309461997,8.33552444,140.15,140.11,0.063]
[1745309462191,8.33552444,140.15,140.11,8.39852444]
[1745309463308,15.47099697,140.15,140.11,8.39852444]
[1745309464511,15.47047286,140.16,140.11,15.53574124]
[1745309465723,15.47047286,140.16,140.11,8.39852444]
[1745309466322,15.47047286,140.16,140.12,42.77]
[1745309467017,7.13494842,140.16,140.12,51.10552444]
[1745309467201,15.4692097,140.18,140.13,8.33552444]
[1745309467399,8.33552444,140.17,140.12,51.10552444]
[1745309467601,15.47022763,140.16,140.12,42.77]
[1745309468193,0.03,140.2,140.15,34.33552444]
[1745309468419,0.03,140.2,140.18,8.33552444]
[1745309468619,0.03,140.2,140.19,8.33552444]
[1745309468921,0.03,140.2,140.19,51.10552444]
[1745309469299,0.03,140.2,140.19,55.7789583]
[1745309470004,0.03,140.2,140.19,62.9121347]
[1745309471222,0.03,140.2,140.19,49.9031764]
[1745309471415,0.03,140.2,140.19,62.9121347]
[1745309475101,0.03,140.2,140.19,81.56178356]
[1745309475530,0.03,140.2,140.19,181.61178356]
[1745309478530,0.03,140.23,140.22,26.0]
[1745309478701,0.03,140.23,140.22,169.94964886]
[1745309479025,0.03,140.23,140.22,182.95860716]
[1745309480539,0.03,140.23,140.22,190.09025742]
[1745309483298,0.03,140.23,140.22,147.32025742]
[1745309483734,0.03,140.23,140.22,7.13165026]
[1745309484027,0.03,140.23,140.22,20.14060856]
[1745309484622,0.03,140.23,140.22,46.14060856]
[1745309485142,0.03,140.23,140.19,82.53]
[1745309485324,0.03,140.23,140.2,13.0089583]
[1745309486332,0.03,140.23,140.21,49.9021589]
[1745309486542,0.03,140.23,140.21,62.9111172]
[1745309487621,0.03,140.23,140.21,49.9021589]
[1745309487817,0.03,140.23,140.21,42.77]
[1745309488927,0.03,140.23,140.21,49.90212126]
[1745309489239,0.03,140.23,140.21,62.91107956]
[1745309489462,0.03,140.23,140.22,55.7789583]
[1745309489611,0.03,140.23,140.22,100.42860716]
[1745309491008,0.03,140.23,140.22,207.61025742]
[1745309491427,0.03,140.23,140.22,202.92013273]
[1745309491617,0.03,140.25,140.24,68.77]
[1745309491831,0.03,140.25,140.24,77.08883361]
[1745309492241,0.03,140.25,140.24,103.01381691]
[1745309492831,0.03,140.25,140.24,185.54381691]
[1745309493038,0.03,140.25,140.24,159.39911567]
[1745309493346,0.03,140.25,140.24,177.06815478]
[1745309494244,0.03,140.25,140.24,164.07421842]
[1745309497542,0.03,140.25,140.24,190.07421842]
[1745309501752,0.03,140.25,140.22,60.29]
[1745309501934,0.03,140.25,140.22,42.77]
[1745309503527,7.1306332,140.24,140.22,42.77]
[1745309504154,7.1306332,140.24,140.21,18.64964886]
[1745309504455,20.12456956,140.24,140.2,68.77]
[1745309505230,21.78396956,140.24,140.2,42.77]
[1745309505430,12.99393636,140.23,140.19,61.41964886]
[1745309505647,7.13165026,140.22,140.19,74.41358522]
[1745309505854,7.13165026,140.22,140.19,42.77]
[1745309506151,20.12558662,140.22,140.18,18.64964886]
[1745309506546,7.13165026,140.22,140.18,31.64358522]
[1745309506860,20.12558662,140.22,140.18,31.64358522]
[1745309507058,20.12558662,140.22,140.17,39.05693636]
[1745309507431,7.13165026,140.22,140.17,39.05693636]
[1745309507638,7.13122162,140.23,140.19,12.99393636]
[1745309508146,28.11569166,140.24,140.2,12.99393636]
[1745309508361,1.6594,140.24,140.21,18.64964886]
[1745309509175,7.16028059,140.25,140.21,12.99393636]
[1745309509666,7.16028059,140.25,140.21,31.64358522]
[1745309510170,7.16028059,140.25,140.21,18.64964886]
[1745309510171,20.15421695,140.25,140.21,18.64964886]
[1745309510487,7.16028059,140.25,140.21,31.64358522]
[1745309510668,0.03,140.25,140.22,18.64964886]
[1745309510966,0.03,140.25,140.24,31.64358522]
[1745309511161,0.03,140.25,140.24,156.94358522]
[1745309511944,0.03,140.25,140.24,164.07421842]
[1745309512466,0.03,140.25,140.24,177.06815478]
[1745309512649,0.03,140.26,140.25,100.41358522]
[1745309512849,0.03,140.26,140.25,182.94358522]
[1745309514070,0.03,140.26,140.25,147.30370999]
[1745309516167,0.03,140.26,140.25,190.07370999]
[1745309516573,0.03,140.26,140.25,87.41964886]
[1745309517067,0.03,140.26,140.24,18.64964886]
[1745309517453,0.03,140.26,140.24,31.64358522]
[1745309518270,0.03,140.26,140.24,18.64964886]
[1745309519565,0.03,140.26,140.24,31.64358522]
[1745309520061,0.03,140.26,140.25,12.99393636]
[1745309520271,0.03,140.26,140.24,31.64358522]
[1745309522565,0.03,140.26,140.24,38.77416309]
[1745309522768,0.03,140.26,140.24,31.64358522]
[1745309523643,0.03,140.26,140.25,74.41358522]
[1745309523966,0.03,140.26,140.25,182.94358522]
[1745309525671,0.03,140.26,140.25,190.07370999]
[1745309526657,0.03,140.26,140.25,182.94358522]
[1745309526968,0.03,140.26,140.25,190.07370999]
[1745309527561,0.03,140.26,140.25,182.94358522]
[1745309527873,0.03,140.26,140.25,190.07370999]
[1745309528077,0.03,140.26,140.25,182.94358522]
[1745309528257,0.03,140.26,140.25,169.94964886]
[1745309528462,0.03,140.26,140.25,182.94358522]
[1745309529572,0.03,140.26,140.25,190.07370999]
[1745309529757,0.03,140.26,140.25,100.41358522]
[1745309530072,0.03,140.26,140.25,61.41964886]
[1745309530372,0.03,140.26,140.25,74.41358522]
[1745309531678,0.03,140.26,140.25,81.54370999]
[1745309531879,0.03,140.26,140.25,74.41358522]
[1745309532477,0.03,140.26,140.25,81.54370999]
[1745309533280,0.03,140.26,140.25,76.86852057]
[1745309535257,0.03,140.26,140.25,159.39852057]
[1745309536383,0.03,140.26,140.25,185.39852057]
[1745309537383,0.03,140.26,140.25,159.39852057]
[1745309537580,0.03,140.28,140.27,87.41964886]
[1745309537776,0.03,140.28,140.27,95.7383958]
[1745309538165,0.03,140.28,140.27,178.2683958]
[1745309539985,0.03,140.28,140.27,185.39750394]
[1745309541000,0.03,140.28,140.27,142.62750394]
[1745309544285,0.03,140.28,140.27,135.4983958]
[1745309545370,0.03,140.28,140.27,142.62750394]
[1745309545965,0.03,140.28,140.27,134.308757]
[1745309546175,0.03,140.28,140.27,127.17964886]
[1745309546385,0.03,140.28,140.27,135.4983958]
[1745309546689,0.03,140.28,140.27,142.62750394]
[1745309551196,0.03,140.28,140.27,185.39750394]
[1745309553407,0.03,140.28,140.27,169.94964886]
[1745309553722,0.03,140.28,140.27,143.94964886]
[1745309554005,0.03,140.28,140.25,77.08874694]
[1745309555112,0.03,140.28,140.25,51.08874694]
[1745309555476,0.03,140.28,140.27,51.08874694]
[1745309555682,0.03,140.28,140.27,42.77]
[1745309555889,0.03,140.28,140.26,8.31874694]
[1745309556091,0.03,140.28,140.25,61.41964886]
[1745309556303,0.03,140.28,140.25,51.08874694]
[1745309556611,0.03,140.28,140.26,8.31874694]
[1745309557306,0.03,140.28,140.25,51.08874694]
[1745309558100,0.03,140.28,140.26,8.31874694]
[1745309558281,0.03,140.28,140.26,26.9683958]
[1745309559326,0.03,140.28,140.27,8.31874694]
[1745309560116,0.03,140.28,140.27,69.7383958]
[1745309560423,0.03,140.28,140.27,76.86750394]
[1745309561615,0.03,140.28,140.27,185.39750394]
[1745309566815,0.03,140.28,140.27,178.2683958]
[1745309567011,0.03,140.28,140.27,169.94964886]
[1745309567211,0.03,140.28,140.27,152.2683958]
[1745309568631,0.03,140.28,140.27,143.94964886]
[1745309568831,0.03,140.28,140.27,152.2683958]
[1745309570635,0.03,140.28,140.27,125.3]
[1745309571022,0.03,140.28,140.27,82.53]
[1745309571816,0.03,140.28,140.25,44.64964886]
[1745309572022,0.03,140.28,140.25,52.9683958]
[1745309573347,0.03,140.28,140.25,26.9683958]
[1745309573722,0.03,140.28,140.23,75.90102029]
[1745309574040,8.34874694,140.28,140.23,51.08874694]
[1745309574226,8.34874694,140.28,140.23,42.77]
[1745309574432,8.34874694,140.28,140.23,51.08874694]
[1745309574844,0.03,140.28,140.23,51.08874694]
[1745309575043,8.34874694,140.28,140.23,51.08874694]
[1745309575231,8.31874694,140.27,140.23,42.77]
[1745309575842,0.03,140.28,140.23,51.08874694]
[1745309576045,15.44785508,140.27,140.22,52.9683958]
[1745309576250,8.31874694,140.26,140.22,8.31874694]
[1745309576552,9.88174694,140.26,140.21,26.9683958]
[1745309576850,9.88174694,140.26,140.21,18.64964886]
[1745309577051,9.88174694,140.26,140.21,26.9683958]
[1745309578039,7.13012477,140.25,140.21,26.9683958]
[1745309578421,7.13012477,140.25,140.22,8.31874694]
[1745309579434,8.69279366,140.26,140.22,26.9683958]
[1745309580145,17.0115406,140.26,140.22,26.9683958]
[1745309580830,8.69279366,140.26,140.22,26.9683958]
[1745309581032,7.12931672,140.27,140.25,8.31874694]
[1745309581235,7.15862021,140.28,140.26,8.31874694]
[1745309581955,0.03,140.28,140.27,8.31874694]
[1745309582126,0.03,140.28,140.27,69.7383958]
[1745309582924,0.03,140.28,140.27,61.41964886]
[1745309583142,0.03,140.28,140.27,69.7383958]
[1745309584354,0.03,140.28,140.27,26.9683958]
[1745309587352,0.03,140.28,140.27,34.09750394]
[1745309589047,0.03,140.28,140.27,76.86750394]
[1745309589240,0.03,140.28,140.27,159.39750394]
[1745309591638,0.03,140.28,140.27,116.62750394]
[1745309594152,0.03,140.28,140.27,109.4983958]
[1745309595250,0.03,140.28,140.27,82.53]
[1745309595435,0.03,140.28,140.24,18.64964886]
[1745309595630,8.34874694,140.28,140.22,82.53]
[1745309595835,8.31874694,140.27,140.22,90.84874694]
[1745309596167,7.12961642,140.26,140.22,90.84874694]
[1745309596650,8.31874694,140.25,140.21,26.9683958]
[1745309597460,7.1306332,140.24,140.21,26.9683958]
[1745309597956,15.44938014,140.24,140.2,0.063]
[1745309598459,7.1306332,140.24,140.2,0.063]
[1745309598656,6.0671,140.28,140.24,26.0]
[1745309598857,6.0671,140.28,140.24,34.31874694]
[1745309598858,14.38584694,140.28,140.24,34.31874694]
[1745309599059,14.38584694,140.28,140.23,8.31874694]
[1745309599253,8.31874694,140.27,140.23,8.31874694]
[1745309599646,15.44785508,140.27,140.23,8.31874694]
[1745309600252,8.31874694,140.26,140.22,26.9683958]
[1745309600437,8.31874694,140.25,140.2,8.38174694]
[1745309600635,8.31874694,140.24,140.2,0.063]
[1745309602162,8.31874694,140.25,140.2,0.063]
[1745309602343,8.31874694,140.24,140.2,0.063]
[1745309602667,8.31874694,140.24,140.2,8.38174694]
[1745309603765,8.31874694,140.24,140.2,0.063]
[1745309604952,15.44963987,140.24,140.2,0.063]
[1745309605865,24.95187851,140.27,140.2,0.063]
[1745309606166,8.31874694,140.24,140.2,0.063]
[1745309606871,15.44987622,140.24,140.2,0.063]
[1745309607047,17.82277037,140.27,140.21,8.31874694]
[1745309607365,8.31874694,140.26,140.22,8.31874694]
[1745309608052,15.44836336,140.26,140.22,8.31874694]
[1745309608455,15.44836336,140.26,140.21,8.31874694]
[1745309609863,15.44836336,140.26,140.21,15.45089557]
[1745309610171,15.44836336,140.26,140.22,8.31874694]
[1745309610773,7.12961642,140.26,140.22,8.31874694]
[1745309611066,7.12915768,140.27,140.23,8.31874694]
[1745309611445,7.1587865,140.28,140.24,8.31874694]
[1745309612585,15.47753344,140.28,140.23,26.9683958]
[1745309612744,8.31874694,140.26,140.22,18.64964886]
[1745309613172,8.31874694,140.26,140.21,8.31874694]
[1745309614684,7.13012477,140.25,140.21,8.31874694]
[1745309614851,7.13012477,140.25,140.21,15.45089128]
[1745309615372,7.12982359,140.26,140.22,8.31874694]
[1745309615571,7.12923518,140.27,140.23,8.31874694]
[1745309616261,15.47758832,140.28,140.23,8.31874694]
[1745309616576,15.47758832,140.28,140.23,26.9683958]
[1745309616755,0.03,140.28,140.23,26.9683958]
[1745309616957,8.34874694,140.28,140.23,34.099454]
[1745309617477,0.03,140.28,140.24,8.31874694]
[1745309618466,0.03,140.28,140.24,15.44931692]
[1745309619668,8.34874694,140.28,140.23,34.09934542]
[1745309620071,15.47751693,140.28,140.23,34.09934542]
[1745309621780,15.47751693,140.28,140.24,42.77]
[1745309621953,8.31874694,140.27,140.22,42.77]
[1745309622153,8.31874694,140.27,140.23,8.31874694]
[1745309622467,0.03,140.28,140.24,69.7383958]
[1745309623448,0.03,140.28,140.26,69.7383958]
[1745309623654,0.03,140.28,140.27,69.7383958]
[1745309623853,0.03,140.28,140.27,76.86750394]
[1745309627677,0.03,140.28,140.27,159.39750394]
[1745309634897,0.03,140.28,140.27,151.078757]
[1745309635070,0.03,140.28,140.27,159.39750394]
[1745309650012,0.03,140.28,140.27,151.078757]
[1745309650316,0.03,140.28,140.27,82.53]
[1745309650517,0.03,140.28,140.26,42.77]
[1745309651016,0.03,140.28,140.25,34.09848835]
[1745309651601,0.03,140.28,140.26,8.31874694]
[1745309654425,0.03,140.28,140.25,18.64964886]
[1745309654601,0.03,140.28,140.25,26.9683958]
[1745309654810,1.6464,140.28,140.24,26.0]
[1745309655104,9.96514694,140.28,140.24,26.0]
[1745309655320,8.31874694,140.27,140.24,26.0]
[1745309655831,8.31874694,140.25,140.2,0.063]
[1745309655994,8.31874694,140.24,140.2,8.38174694]
[1745309656496,8.31874694,140.23,140.2,0.063]
[1745309656816,15.44977308,140.24,140.2,0.063]